[Event "Betsys MČR v online bleskovém šachu 2021"]
[Site "Chess.com"]
[Date "2021.04.17"]
[Round "11"]
[White "DrDANDog"]
[Black "matej-c"]
[Result "1-0"]
[WhiteElo "1803"]
[BlackElo "1940"]
[TimeControl "180+1"]
[EndTime "10:50:30 PDT"]
[Termination "Uživatel DrDANDog zvítězil na čas"]

1. e4 {[%clk 0:02:55.3]} 1... e5 {[%clk 0:02:59.8]} 2. Nf3 {[%clk 0:02:54.7]}
2... Nf6 {[%clk 0:02:59.5]} 3. Nxe5 {[%clk 0:02:54.8]} 3... d6 {[%clk
0:02:59.3]} 4. Nf3 {[%clk 0:02:55]} 4... Nxe4 {[%clk 0:02:58.9]} 5. Nc3 {[%clk
0:02:55.8]} 5... Nf6 {[%clk 0:02:58.5]} 6. d4 {[%clk 0:02:55.6]} 6... Be7 {[%clk
0:02:57.6]} 7. Bd3 {[%clk 0:02:55.5]} 7... Bg4 {[%clk 0:02:55.5]} 8. h3 {[%clk
0:02:54.9]} 8... Bh5 {[%clk 0:02:55.5]} 9. O-O {[%clk 0:02:54.7]} 9... Nc6
{[%clk 0:02:49.7]} 10. Be3 {[%clk 0:02:52.1]} 10... O-O {[%clk 0:02:42.6]} 11.
d5 {[%clk 0:02:52.3]} 11... Ne5 {[%clk 0:02:39.1]} 12. Be2 {[%clk 0:02:50.7]}
12... Nxf3+ {[%clk 0:02:32.7]} 13. Bxf3 {[%clk 0:02:51.6]} 13... Bg6 {[%clk
0:02:33.4]} 14. Be2 {[%clk 0:02:42.7]} 14... Re8 {[%clk 0:02:31.1]} 15. Bd3
{[%clk 0:02:42.9]} 15... Bh5 {[%clk 0:02:28.9]} 16. Be2 {[%clk 0:02:42.8]} 16...
Bg6 {[%clk 0:02:27.5]} 17. Bd3 {[%clk 0:02:42.4]} 17... Nd7 {[%clk 0:02:22.5]}
18. Bxg6 {[%clk 0:02:40.7]} 18... hxg6 {[%clk 0:02:23.4]} 19. Bd4 {[%clk
0:02:33.5]} 19... Bf6 {[%clk 0:02:18.2]} 20. Qd2 {[%clk 0:02:25]} 20... Ne5
{[%clk 0:02:04.3]} 21. Rfe1 {[%clk 0:02:20.8]} 21... a6 {[%clk 0:01:51.2]} 22.
a4 {[%clk 0:02:19.9]} 22... Nd7 {[%clk 0:01:44.3]} 23. Ne4 {[%clk 0:02:09.8]}
23... Bxd4 {[%clk 0:01:25.1]} 24. Qxd4 {[%clk 0:02:10.7]} 24... f5 {[%clk
0:01:19.4]} 25. Nd2 {[%clk 0:01:58.3]} 25... Qg5 {[%clk 0:01:15.4]} 26. Nf3
{[%clk 0:01:56.1]} 26... Qf6 {[%clk 0:01:09.7]} 27. Re6 {[%clk 0:01:49]} 27...
Qxd4 {[%clk 0:01:05.5]} 28. Nxd4 {[%clk 0:01:49.9]} 28... Nc5 {[%clk 0:01:02.8]}
29. Ree1 {[%clk 0:01:41.6]} 29... Rxe1+ {[%clk 0:00:58.9]} 30. Rxe1 {[%clk
0:01:42.5]} 30... Nxa4 {[%clk 0:00:58.4]} 31. b3 {[%clk 0:01:37]} 31... Nc3
{[%clk 0:00:58.1]} 32. Re7 {[%clk 0:01:30.1]} 32... Nxd5 {[%clk 0:00:54.4]} 33.
Rd7 {[%clk 0:01:25.5]} 33... Re8 {[%clk 0:00:41.3]} 34. c4 {[%clk 0:01:23.3]}
34... Nf4 {[%clk 0:00:33.4]} 35. Rxc7 {[%clk 0:01:20.3]} 35... Re4 {[%clk
0:00:27.5]} 36. Nc2 {[%clk 0:01:14.5]} 36... Re2 {[%clk 0:00:25.5]} 37. Ne3
{[%clk 0:01:14.6]} 37... Nd3 {[%clk 0:00:21.4]} 38. Rxb7 {[%clk 0:01:05.4]}
38... Nxf2 {[%clk 0:00:19]} 39. Nd5 {[%clk 0:01:00.6]} 39... Rb2 {[%clk
0:00:15.7]} 40. b4 {[%clk 0:00:59.8]} 40... Nd3 {[%clk 0:00:15]} 41. Ne7+ {[%clk
0:00:58.4]} 41... Kh7 {[%clk 0:00:14.3]} 42. Nc6 {[%clk 0:00:56.3]} 42... g5
{[%clk 0:00:10.9]} 43. Ne7 {[%clk 0:00:52.1]} 43... Rb1+ {[%clk 0:00:11]} 44.
Kh2 {[%clk 0:00:51.6]} 44... Rxb4 {[%clk 0:00:11.4]} 45. Ra7 {[%clk 0:00:51.4]}
45... Ra4 {[%clk 0:00:09.6]} 46. Nxf5 {[%clk 0:00:51.2]} 46... Kg6 {[%clk
0:00:08.8]} 47. Nxd6 {[%clk 0:00:50.5]} 47... Nb4 {[%clk 0:00:06.8]} 48. c5
{[%clk 0:00:47.6]} 48... Nc6 {[%clk 0:00:06.7]} 49. Rc7 {[%clk 0:00:46.3]} 49...
Nd4 {[%clk 0:00:05.8]} 50. Ne8 {[%clk 0:00:44.6]} 50... a5 {[%clk 0:00:04.7]}
51. Rxg7+ {[%clk 0:00:44.4]} 51... Kh6 {[%clk 0:00:03.1]} 52. Rd7 {[%clk
0:00:44.5]} 52... Rc4 {[%clk 0:00:02.6]} 53. Rd6+ {[%clk 0:00:42.3]} 53... Kh7
{[%clk 0:00:01.8]} 54. Nf6+ {[%clk 0:00:42.6]} 54... Kg7 {[%clk 0:00:01.7]} 55.
Ne8+ {[%clk 0:00:42.2]} 55... Kf7 {[%clk 0:00:01.5]} 56. Nc7 {[%clk 0:00:39.9]}
56... Rxc5 {[%clk 0:00:01.2]} 57. Rd7+ {[%clk 0:00:36.6]} 1-0

[Event "Betsys MČR v online bleskovém šachu 2021"]
[Site "Chess.com"]
[Date "2021.04.17"]
[Round "11"]
[White "DiscoSTU666"]
[Black "JaraLinhart"]
[Result "0-1"]
[WhiteElo "1866"]
[BlackElo "1717"]
[TimeControl "180+1"]
[EndTime "10:50:30 PDT"]
[Termination "Uživatel JaraLinhart zvítězil na čas"]

1. e4 {[%clk 0:03:00.9]} 1... e5 {[%clk 0:02:58.9]} 2. Nf3 {[%clk 0:03:00.6]}
2... Nc6 {[%clk 0:02:58.2]} 3. Bc4 {[%clk 0:02:59.4]} 3... Nf6 {[%clk
0:02:57.5]} 4. d3 {[%clk 0:02:58.2]} 4... h6 {[%clk 0:02:52.2]} 5. c3 {[%clk
0:02:54.9]} 5... a6 {[%clk 0:02:47.9]} 6. a4 {[%clk 0:02:51]} 6... Bc5 {[%clk
0:02:41.5]} 7. O-O {[%clk 0:02:47.4]} 7... d6 {[%clk 0:02:37]} 8. h3 {[%clk
0:02:36.4]} 8... O-O {[%clk 0:02:23]} 9. Bb3 {[%clk 0:02:28.3]} 9... Ne7 {[%clk
0:02:07.8]} 10. Re1 {[%clk 0:02:07.2]} 10... Ng6 {[%clk 0:02:02.9]} 11. Nbd2
{[%clk 0:02:05.7]} 11... Nf4 {[%clk 0:01:56.9]} 12. Nf1 {[%clk 0:02:04.9]} 12...
Ne6 {[%clk 0:01:51]} 13. d4 {[%clk 0:01:57.7]} 13... exd4 {[%clk 0:01:50.6]} 14.
cxd4 {[%clk 0:01:57]} 14... Bb4 {[%clk 0:01:50.7]} 15. Bd2 {[%clk 0:01:53.3]}
15... a5 {[%clk 0:01:25.5]} 16. Ng3 {[%clk 0:01:40]} 16... c5 {[%clk 0:01:13.8]}
17. Bxb4 {[%clk 0:01:34.9]} 17... axb4 {[%clk 0:01:08.1]} 18. Qd2 {[%clk
0:01:34.8]} 18... b6 {[%clk 0:00:54]} 19. Rad1 {[%clk 0:01:33]} 19... Bd7 {[%clk
0:00:49]} 20. Ra1 {[%clk 0:01:15.8]} 20... Qc7 {[%clk 0:00:43.6]} 21. Rec1
{[%clk 0:01:04.8]} 21... Qb7 {[%clk 0:00:38.9]} 22. d5 {[%clk 0:00:40.5]} 22...
Nc7 {[%clk 0:00:36.1]} 23. e5 {[%clk 0:00:29.9]} 23... Nfxd5 {[%clk 0:00:31.3]}
24. exd6 {[%clk 0:00:28.7]} 24... c4 {[%clk 0:00:13.3]} 25. Bxc4 {[%clk
0:00:24.9]} 25... b5 {[%clk 0:00:12.9]} 26. Bb3 {[%clk 0:00:22.5]} 26... bxa4
{[%clk 0:00:12.1]} 27. Bc2 {[%clk 0:00:16.3]} 27... Na6 {[%clk 0:00:08.9]} 28.
Be4 {[%clk 0:00:15.2]} 28... Be6 {[%clk 0:00:06]} 29. Nd4 {[%clk 0:00:10.9]}
29... Qb6 {[%clk 0:00:02.5]} 30. Ndf5 {[%clk 0:00:07.9]} 30... Nf6 {[%clk
0:00:01.5]} 31. Ne7+ {[%clk 0:00:06.1]} 31... Kh8 {[%clk 0:00:01.1]} 32. Bxa8
{[%clk 0:00:06.5]} 32... Rd8 {[%clk 0:00:02]} 33. Bf3 {[%clk 0:00:03.6]} 33...
Rxd6 {[%clk 0:00:02.2]} 34. Qe2 {[%clk 0:00:03.5]} 34... Qd8 {[%clk 0:00:03.1]}
35. Nef5 {[%clk 0:00:02.8]} 35... Bxf5 {[%clk 0:00:02.1]} 36. Nxf5 {[%clk
0:00:02.8]} 36... Rd2 {[%clk 0:00:03]} 37. Qe3 {[%clk 0:00:02]} 37... Qd7 {[%clk
0:00:03.4]} 38. Ne7 {[%clk 0:00:01.1]} 38... Qe6 {[%clk 0:00:02]} 39. Re1 {[%clk
0:00:01.1]} 39... Qxe3 {[%clk 0:00:01.3]} 40. Rxe3 {[%clk 0:00:01.1]} 40... Rxb2
{[%clk 0:00:02.2]} 41. Nc6 {[%clk 0:00:01]} 41... a3 {[%clk 0:00:03.1]} 0-1

[Event "Betsys MČR v online bleskovém šachu 2021"]
[Site "Chess.com"]
[Date "2021.04.17"]
[Round "11"]
[White "Varinius"]
[Black "fera_v"]
[Result "1/2-1/2"]
[WhiteElo "2411"]
[BlackElo "2233"]
[TimeControl "180+1"]
[EndTime "10:50:32 PDT"]
[Termination "Remíza opakováním pozice"]

1. a4 {[%clk 0:03:00.9]} 1... Nf6 {[%clk 0:02:59.1]} 2. b3 {[%clk 0:03:00.4]}
2... g6 {[%clk 0:02:59.2]} 3. Bb2 {[%clk 0:03:00.1]} 3... Bg7 {[%clk 0:03:00.1]}
4. d4 {[%clk 0:02:58.2]} 4... d6 {[%clk 0:03:00.2]} 5. g3 {[%clk 0:02:57.7]}
5... O-O {[%clk 0:03:00.5]} 6. Bg2 {[%clk 0:02:58.2]} 6... Nbd7 {[%clk
0:03:00.9]} 7. Nf3 {[%clk 0:02:58.3]} 7... a5 {[%clk 0:03:01.2]} 8. O-O {[%clk
0:02:58.4]} 8... c6 {[%clk 0:03:01.4]} 9. Nbd2 {[%clk 0:02:57.9]} 9... Qc7
{[%clk 0:03:01.6]} 10. e4 {[%clk 0:02:57.9]} 10... e5 {[%clk 0:03:00.3]} 11.
dxe5 {[%clk 0:02:56.1]} 11... dxe5 {[%clk 0:03:00.2]} 12. Qe2 {[%clk 0:02:55.6]}
12... Re8 {[%clk 0:02:58.6]} 13. Rfd1 {[%clk 0:02:54.7]} 13... Nc5 {[%clk
0:02:53.7]} 14. Ne1 {[%clk 0:02:36.9]} 14... Bg4 {[%clk 0:02:50.3]} 15. f3
{[%clk 0:02:35.5]} 15... Be6 {[%clk 0:02:45.6]} 16. Nd3 {[%clk 0:02:35.3]} 16...
Nxd3 {[%clk 0:02:44]} 17. Qxd3 {[%clk 0:02:35.4]} 17... Rad8 {[%clk 0:02:42.8]}
18. Qe3 {[%clk 0:02:33.6]} 18... Nd7 {[%clk 0:02:37.2]} 19. Bf1 {[%clk
0:02:31.7]} 19... Bf8 {[%clk 0:02:36.3]} 20. Kg2 {[%clk 0:02:31.5]} 20... Bc5
{[%clk 0:02:35.6]} 21. Qe2 {[%clk 0:02:31]} 21... f6 {[%clk 0:02:31.7]} 22. Nc4
{[%clk 0:02:30.2]} 22... Kg7 {[%clk 0:02:22]} 23. Bc3 {[%clk 0:02:15]} 23... b6
{[%clk 0:02:18.3]} 24. Rd2 {[%clk 0:02:13.1]} 24... Nf8 {[%clk 0:02:14.3]} 25.
Rad1 {[%clk 0:02:12.5]} 25... h5 {[%clk 0:02:10.4]} 26. h4 {[%clk 0:01:49.2]}
26... Qe7 {[%clk 0:02:02.6]} 27. Ne3 {[%clk 0:01:36.7]} 27... Bf7 {[%clk
0:01:51.8]} 28. Qe1 {[%clk 0:01:35.1]} 28... Ne6 {[%clk 0:01:47.7]} 29. Bc4
{[%clk 0:01:30.9]} 29... Rxd2+ {[%clk 0:01:45.3]} 30. Rxd2 {[%clk 0:01:29.9]}
30... Rd8 {[%clk 0:01:43.6]} 31. Rxd8 {[%clk 0:01:04.7]} 31... Qxd8 {[%clk
0:01:38.2]} 32. Qd2 {[%clk 0:01:05.2]} 32... Qxd2+ {[%clk 0:01:35.3]} 33. Bxd2
{[%clk 0:01:05.9]} 33... Bd4 {[%clk 0:01:13.8]} 34. c3 {[%clk 0:01:01.6]} 34...
Bxe3 {[%clk 0:00:55.1]} 35. Bxe3 {[%clk 0:01:01.1]} 35... Nc5 {[%clk 0:00:55.5]}
36. Bxf7 {[%clk 0:00:48.3]} 36... Kxf7 {[%clk 0:00:54.5]} 37. Bxc5 {[%clk
0:00:48.7]} 37... bxc5 {[%clk 0:00:54.6]} 38. Kf2 {[%clk 0:00:49.2]} 38... Ke6
{[%clk 0:00:42.6]} 39. Ke2 {[%clk 0:00:49.3]} 39... c4 {[%clk 0:00:34]} 40. b4
{[%clk 0:00:44.1]} 40... Kd6 {[%clk 0:00:32.1]} 41. g4 {[%clk 0:00:33.6]} 41...
Kc7 {[%clk 0:00:27.6]} 42. gxh5 {[%clk 0:00:33.2]} 42... gxh5 {[%clk 0:00:27]}
43. Kd2 {[%clk 0:00:33.2]} 43... Kb6 {[%clk 0:00:26.8]} 44. Kc2 {[%clk
0:00:33.1]} 44... c5 {[%clk 0:00:21.3]} 45. b5 {[%clk 0:00:26.3]} 45... Kb7
{[%clk 0:00:21.2]} 46. Kd2 {[%clk 0:00:26.5]} 46... Kb6 {[%clk 0:00:21.8]} 47.
Ke3 {[%clk 0:00:27.4]} 47... Kb7 {[%clk 0:00:22.2]} 48. f4 {[%clk 0:00:28.3]}
48... Kb6 {[%clk 0:00:22.7]} 49. Kf3 {[%clk 0:00:25.5]} 49... Kb7 {[%clk
0:00:22.9]} 50. fxe5 {[%clk 0:00:25.6]} 50... fxe5 {[%clk 0:00:22.3]} 51. Kg3
{[%clk 0:00:26.5]} 51... Kb6 {[%clk 0:00:22.9]} 52. Kf3 {[%clk 0:00:27.4]} 52...
Kb7 {[%clk 0:00:23.8]} 53. Ke2 {[%clk 0:00:28.2]} 53... Kb6 {[%clk 0:00:24.5]}
54. Kd2 {[%clk 0:00:29.1]} 54... Kb7 {[%clk 0:00:25.2]} 55. Kc2 {[%clk 0:00:30]}
55... Kb6 {[%clk 0:00:26]} 56. Kb2 {[%clk 0:00:30.9]} 56... Kb7 {[%clk
0:00:26.8]} 57. Kb1 {[%clk 0:00:31.8]} 57... Kb6 {[%clk 0:00:27.7]} 58. Kc2
{[%clk 0:00:32.6]} 58... Kb7 {[%clk 0:00:28.6]} 59. Kd2 {[%clk 0:00:33.5]} 59...
Kb6 {[%clk 0:00:29.5]} 60. Ke2 {[%clk 0:00:34.4]} 60... Kb7 {[%clk 0:00:30.4]}
61. Kf2 {[%clk 0:00:34.9]} 61... Kb6 {[%clk 0:00:31.3]} 62. Kg2 {[%clk
0:00:35.8]} 62... Kb7 {[%clk 0:00:32.1]} 63. Kg1 {[%clk 0:00:36.7]} 63... Kb6
{[%clk 0:00:33]} 64. Kf1 {[%clk 0:00:37.6]} 64... Kb7 {[%clk 0:00:33.9]} 65. Ke2
{[%clk 0:00:38.5]} 65... Kb6 {[%clk 0:00:34.8]} 66. Ke3 {[%clk 0:00:39.4]} 66...
Kb7 {[%clk 0:00:35.6]} 67. Kf3 {[%clk 0:00:40.3]} 67... Kb6 {[%clk 0:00:36.5]}
68. Ke2 {[%clk 0:00:41.2]} 68... Kb7 {[%clk 0:00:37.3]} 69. Kd1 {[%clk
0:00:42.1]} 69... Kb6 {[%clk 0:00:38.1]} 70. Kc1 {[%clk 0:00:43]} 70... Kb7
{[%clk 0:00:38.9]} 71. Kb1 {[%clk 0:00:43.2]} 71... Kb6 {[%clk 0:00:39.8]} 72.
Ka1 {[%clk 0:00:44.1]} 72... Kb7 {[%clk 0:00:40.5]} 73. Ka2 {[%clk 0:00:45]}
73... Kb6 {[%clk 0:00:41.4]} 74. Ka3 {[%clk 0:00:45.9]} 74... Kb7 {[%clk
0:00:42.2]} 75. Kb2 {[%clk 0:00:46.8]} 75... Kb6 {[%clk 0:00:43.1]} 76. Kc1
{[%clk 0:00:47.7]} 76... Kb7 {[%clk 0:00:44]} 77. Kd1 {[%clk 0:00:48.6]} 77...
Kb6 {[%clk 0:00:44.9]} 78. Ke1 {[%clk 0:00:49.5]} 78... Kb7 {[%clk 0:00:45.8]}
79. Kf1 {[%clk 0:00:50.4]} 79... Kb6 {[%clk 0:00:46.7]} 80. Kg1 {[%clk
0:00:50.9]} 80... Kb7 {[%clk 0:00:47.6]} 81. Kh1 {[%clk 0:00:51.7]} 81... Kb6
{[%clk 0:00:48.5]} 82. Kh2 {[%clk 0:00:52.6]} 82... Kb7 {[%clk 0:00:49.3]} 83.
Kg2 {[%clk 0:00:53.5]} 83... Kb6 {[%clk 0:00:50.2]} 84. Kg3 {[%clk 0:00:54.4]}
84... Kb7 {[%clk 0:00:51.1]} 85. Kh3 {[%clk 0:00:55.3]} 85... Kb6 {[%clk
0:00:52]} 86. Kg3 {[%clk 0:00:56.2]} 86... Kb7 {[%clk 0:00:52.9]} 87. Kf3 {[%clk
0:00:57.1]} 87... Kb6 {[%clk 0:00:53.8]} 88. Kf2 {[%clk 0:00:58]} 88... Kb7
{[%clk 0:00:54.7]} 89. Kg2 {[%clk 0:00:58.9]} 89... Kb6 {[%clk 0:00:55.6]} 90.
Kg1 {[%clk 0:00:59.8]} 90... Kb7 {[%clk 0:00:56.5]} 91. Kh1 {[%clk 0:01:00.7]}
91... Kb6 {[%clk 0:00:57.4]} 92. Kh2 {[%clk 0:01:01.6]} 92... Kb7 {[%clk
0:00:58.3]} 93. Kh3 {[%clk 0:01:02.5]} 93... Kb6 {[%clk 0:00:59.2]} 94. Kg3
{[%clk 0:01:02.6]} 1/2-1/2

[Event "Betsys MČR v online bleskovém šachu 2021"]
[Site "Chess.com"]
[Date "2021.04.17"]
[Round "11"]
[White "conysek"]
[Black "matykov"]
[Result "1-0"]
[WhiteElo "2126"]
[BlackElo "2001"]
[TimeControl "180+1"]
[EndTime "10:50:40 PDT"]
[Termination "Uživatel conysek zvítězil na čas"]

1. e4 {[%clk 0:03:00.9]} 1... e6 {[%clk 0:02:56.9]} 2. Nf3 {[%clk 0:02:59]} 2...
d5 {[%clk 0:02:56.6]} 3. exd5 {[%clk 0:02:59.4]} 3... exd5 {[%clk 0:02:57.5]} 4.
d4 {[%clk 0:02:56.2]} 4... Nc6 {[%clk 0:02:52.7]} 5. c3 {[%clk 0:02:56.5]} 5...
Bd6 {[%clk 0:02:52.5]} 6. Bd3 {[%clk 0:02:55.1]} 6... Nge7 {[%clk 0:02:52.7]} 7.
O-O {[%clk 0:02:55.3]} 7... Bg4 {[%clk 0:02:52.7]} 8. h3 {[%clk 0:02:54.9]} 8...
Bh5 {[%clk 0:02:52.3]} 9. Bg5 {[%clk 0:02:54.7]} 9... Qd7 {[%clk 0:02:51.8]} 10.
Nbd2 {[%clk 0:02:54.2]} 10... O-O-O {[%clk 0:02:50.5]} 11. Re1 {[%clk
0:02:52.3]} 11... Rde8 {[%clk 0:02:44.7]} 12. b4 {[%clk 0:02:49.8]} 12... Bg6
{[%clk 0:02:40.9]} 13. Qc2 {[%clk 0:02:46.8]} 13... Bxd3 {[%clk 0:02:40.3]} 14.
Qxd3 {[%clk 0:02:47.7]} 14... Ng6 {[%clk 0:02:35.9]} 15. a4 {[%clk 0:02:44.2]}
15... f6 {[%clk 0:02:26.4]} 16. Be3 {[%clk 0:02:43.6]} 16... Bf4 {[%clk
0:02:16.2]} 17. Nf1 {[%clk 0:02:39.6]} 17... Bxe3 {[%clk 0:02:15.5]} 18. Nxe3
{[%clk 0:02:38.2]} 18... Nf4 {[%clk 0:02:15.4]} 19. Qf5 {[%clk 0:02:32.3]} 19...
Qxf5 {[%clk 0:02:08.3]} 20. Nxf5 {[%clk 0:02:32.4]} 20... g6 {[%clk 0:02:07.7]}
21. Ne3 {[%clk 0:02:23]} 21... Ne7 {[%clk 0:01:27.3]} 22. Ng4 {[%clk 0:02:18.6]}
22... Nh5 {[%clk 0:01:17]} 23. Re6 {[%clk 0:02:11.3]} 23... f5 {[%clk
0:01:16.6]} 24. Nf6 {[%clk 0:01:54.3]} 24... Nxf6 {[%clk 0:01:15]} 25. Rxf6
{[%clk 0:01:53.6]} 25... Rhf8 {[%clk 0:01:11.6]} 26. Rxf8 {[%clk 0:01:52.8]}
26... Rxf8 {[%clk 0:01:11.7]} 27. Re1 {[%clk 0:01:53.5]} 27... Kd7 {[%clk
0:01:11.7]} 28. Ne5+ {[%clk 0:01:53.1]} 28... Kd6 {[%clk 0:01:07.9]} 29. f4
{[%clk 0:01:52.2]} 29... c6 {[%clk 0:01:02.5]} 30. Kf2 {[%clk 0:01:51.7]} 30...
Nc8 {[%clk 0:01:00.8]} 31. a5 {[%clk 0:01:51.1]} 31... Ne7 {[%clk 0:00:55.3]}
32. Nd3 {[%clk 0:01:49.2]} 32... Ng8 {[%clk 0:00:51.2]} 33. Nc5 {[%clk
0:01:49.2]} 33... b6 {[%clk 0:00:42.2]} 34. axb6 {[%clk 0:01:46]} 34... axb6
{[%clk 0:00:42.2]} 35. Re6+ {[%clk 0:01:44.4]} 35... Kc7 {[%clk 0:00:42.6]} 36.
Nd3 {[%clk 0:01:38]} 36... Kd7 {[%clk 0:00:38.6]} 37. Re2 {[%clk 0:01:36.8]}
37... Re8 {[%clk 0:00:35.1]} 38. Ne5+ {[%clk 0:01:37.4]} 38... Kc7 {[%clk
0:00:32.1]} 39. Ra2 {[%clk 0:01:37.6]} 39... Kb7 {[%clk 0:00:31.3]} 40. Nf7
{[%clk 0:01:29.8]} 40... Ra8 {[%clk 0:00:26.4]} 41. Re2 {[%clk 0:00:59.7]} 41...
Ra3 {[%clk 0:00:25.9]} 42. Rc2 {[%clk 0:00:59.6]} 42... Nf6 {[%clk 0:00:20.6]}
43. Ke3 {[%clk 0:00:59.5]} 43... Ne4 {[%clk 0:00:20.4]} 44. Kd3 {[%clk 0:00:59]}
44... Ra1 {[%clk 0:00:20.3]} 45. Ng5 {[%clk 0:00:54.8]} 45... Nxg5 {[%clk
0:00:18.2]} 46. fxg5 {[%clk 0:00:55.7]} 46... Rd1+ {[%clk 0:00:17.3]} 47. Ke2
{[%clk 0:00:54.9]} 47... Rg1 {[%clk 0:00:16.6]} 48. Kf3 {[%clk 0:00:54.9]} 48...
Re1 {[%clk 0:00:16.2]} 49. Kf4 {[%clk 0:00:54.2]} 49... Re4+ {[%clk 0:00:15.6]}
50. Kf3 {[%clk 0:00:53.9]} 50... Ka6 {[%clk 0:00:14.4]} 51. Ra2+ {[%clk
0:00:50.2]} 51... Kb5 {[%clk 0:00:14.8]} 52. Ra7 {[%clk 0:00:50.1]} 52... Kc4
{[%clk 0:00:13.5]} 53. Rxh7 {[%clk 0:00:50.5]} 53... Kxc3 {[%clk 0:00:13]} 54.
Rg7 {[%clk 0:00:51.2]} 54... Re6 {[%clk 0:00:12.6]} 55. b5 {[%clk 0:00:48.2]}
55... cxb5 {[%clk 0:00:11.1]} 56. h4 {[%clk 0:00:48.7]} 56... Kxd4 {[%clk
0:00:11.2]} 57. h5 {[%clk 0:00:46.7]} 57... b4 {[%clk 0:00:11.5]} 58. Rxg6
{[%clk 0:00:44.8]} 58... Re3+ {[%clk 0:00:08.7]} 59. Kf4 {[%clk 0:00:41.6]}
59... Re4+ {[%clk 0:00:06]} 60. Kxf5 {[%clk 0:00:41.2]} 60... Kc3 {[%clk
0:00:05.9]} 61. Rxb6 {[%clk 0:00:40.6]} 61... b3 {[%clk 0:00:05.7]} 62. h6
{[%clk 0:00:40.7]} 62... b2 {[%clk 0:00:05.8]} 63. h7 {[%clk 0:00:40.6]} 63...
Rb4 {[%clk 0:00:06]} 64. h8=Q+ {[%clk 0:00:38]} 1-0

[Event "Betsys MČR v online bleskovém šachu 2021"]
[Site "Chess.com"]
[Date "2021.04.17"]
[Round "11"]
[White "adasmrazek"]
[Black "AdeeJa"]
[Result "0-1"]
[WhiteElo "1343"]
[BlackElo "1657"]
[TimeControl "180+1"]
[EndTime "10:50:40 PDT"]
[Termination "Uživatel AdeeJa zvítězil po vzdání soupeře"]

1. d4 {[%clk 0:03:00.9]} 1... Nf6 {[%clk 0:02:59.4]} 2. c4 {[%clk 0:03:00.6]}
2... g6 {[%clk 0:02:59.7]} 3. Nc3 {[%clk 0:02:58]} 3... Bg7 {[%clk 0:03:00.6]}
4. Nf3 {[%clk 0:02:56]} 4... d6 {[%clk 0:03:01.5]} 5. e4 {[%clk 0:02:56]} 5...
O-O {[%clk 0:03:02.4]} 6. Be3 {[%clk 0:02:55.5]} 6... e5 {[%clk 0:03:03.3]} 7.
d5 {[%clk 0:02:54.4]} 7... Nbd7 {[%clk 0:02:58.9]} 8. Be2 {[%clk 0:02:53.6]}
8... Ne8 {[%clk 0:02:58.8]} 9. O-O {[%clk 0:02:51.8]} 9... f5 {[%clk 0:02:58.8]}
10. Ng5 {[%clk 0:02:44.2]} 10... Nc5 {[%clk 0:02:49.6]} 11. b4 {[%clk 0:02:14]}
11... f4 {[%clk 0:02:38.2]} 12. bxc5 {[%clk 0:02:10]} 12... fxe3 {[%clk
0:02:36.3]} 13. Ne6 {[%clk 0:02:09.8]} 13... Bxe6 {[%clk 0:02:35.6]} 14. dxe6
{[%clk 0:02:10.5]} 14... Qe7 {[%clk 0:02:34.5]} 15. cxd6 {[%clk 0:02:04.7]}
15... Nxd6 {[%clk 0:02:34.3]} 16. c5 {[%clk 0:01:53.1]} 16... Ne8 {[%clk
0:02:29.1]} 17. Bc4 {[%clk 0:01:51.6]} 17... Rd8 {[%clk 0:02:27.8]} 18. Qe2
{[%clk 0:01:50.2]} 18... Kh8 {[%clk 0:02:23.4]} 19. Rfd1 {[%clk 0:01:36.1]}
19... Rxd1+ {[%clk 0:02:16.9]} 20. Rxd1 {[%clk 0:01:36.5]} 20... Qxc5 {[%clk
0:02:17]} 21. Nd5 {[%clk 0:01:23.3]} 21... Nd6 {[%clk 0:02:05.2]} 22. Bb3 {[%clk
0:01:13.4]} 22... Nxe4 {[%clk 0:01:51.6]} 23. Qxe3 {[%clk 0:01:02.4]} 23... Qxe3
{[%clk 0:01:08.6]} 24. Nxe3 {[%clk 0:01:01]} 24... Nxf2 {[%clk 0:01:00.2]} 25.
e7 {[%clk 0:00:53]} 25... Nxd1 {[%clk 0:00:57.9]} 26. exf8=Q+ {[%clk 0:00:46.2]}
26... Bxf8 {[%clk 0:00:57]} 27. Nxd1 {[%clk 0:00:46.5]} 27... Bc5+ {[%clk
0:00:55.4]} 28. Kf1 {[%clk 0:00:45.9]} 28... Kg7 {[%clk 0:00:56.3]} 29. Ke2
{[%clk 0:00:45.5]} 29... Kf6 {[%clk 0:00:57.2]} 30. Ne3 {[%clk 0:00:45.6]} 30...
e4 {[%clk 0:00:58.1]} 31. g3 {[%clk 0:00:45]} 31... Ke5 {[%clk 0:00:59]} 32.
Ng4+ {[%clk 0:00:43]} 32... Kd4 {[%clk 0:00:59.9]} 33. Kd2 {[%clk 0:00:41.4]}
33... Bb4+ {[%clk 0:00:59.4]} 34. Ke2 {[%clk 0:00:41.2]} 34... Bc5 {[%clk
0:00:55.1]} 35. Nf6 {[%clk 0:00:41.5]} 35... h6 {[%clk 0:00:55.3]} 36. Bc2
{[%clk 0:00:37.6]} 36... e3 {[%clk 0:00:52.6]} 37. Bb3 {[%clk 0:00:38]} 37...
Kc3 {[%clk 0:00:50.5]} 38. Ng4 {[%clk 0:00:37.8]} 38... a5 {[%clk 0:00:44.9]}
39. Nxh6 {[%clk 0:00:32.9]} 39... b5 {[%clk 0:00:44.1]} 40. Ng4 {[%clk
0:00:30.8]} 40... Bd4 {[%clk 0:00:42.8]} 41. Nxe3 {[%clk 0:00:29.1]} 41... c5
{[%clk 0:00:39.8]} 42. Nd5+ {[%clk 0:00:25.2]} 42... Kb2 {[%clk 0:00:37.2]} 43.
Ne7 {[%clk 0:00:11.5]} 43... c4 {[%clk 0:00:34.1]} 44. Bd1 {[%clk 0:00:11.4]}
44... b4 {[%clk 0:00:30.8]} 45. Nxg6 {[%clk 0:00:11.4]} 45... c3 {[%clk
0:00:29.7]} 46. Kd3 {[%clk 0:00:10.4]} 46... Bf6 {[%clk 0:00:25.9]} 47. h4
{[%clk 0:00:09.7]} 47... a4 {[%clk 0:00:24]} 48. Bxa4 {[%clk 0:00:08.1]} 48...
Kxa2 {[%clk 0:00:22.1]} 49. Bc2 {[%clk 0:00:07.7]} 49... b3 {[%clk 0:00:20.8]}
50. Bxb3+ {[%clk 0:00:07.9]} 50... Kxb3 {[%clk 0:00:20.4]} 51. h5 {[%clk
0:00:07.9]} 51... c2 {[%clk 0:00:18.4]} 52. h6 {[%clk 0:00:07.7]} 52... Kb2
{[%clk 0:00:18.1]} 53. h7 {[%clk 0:00:07.9]} 53... c1=Q {[%clk 0:00:16.6]} 54.
h8=Q {[%clk 0:00:05.1]} 54... Bxh8 {[%clk 0:00:14.6]} 55. Nxh8 {[%clk
0:00:05.9]} 55... Qc2+ {[%clk 0:00:14.6]} 0-1